[Event "Live Chess"]
[Site "Chess.com"]
[Date "2023.05.21"]
[Round "-"]
[White "KeithArkell"]
[Black "ProfPoisson"]
[Result "1-0"]
[WhiteElo "2487"]
[BlackElo "1215"]
[TimeControl "300"]
[EndTime "4:36:49 PDT"]
[Termination "KeithArkell won by resignation"]

1. d4 {[%clk 0:04:58.2]} 1... e6 {[%clk 0:04:57.4]} 2. Nf3 {[%clk 0:04:57.2]}
2... f5 {[%clk 0:04:55]} 3. Bg5 {[%clk 0:04:55.7]} 3... Nf6 {[%clk 0:04:52.3]}
4. Nbd2 {[%clk 0:04:54.2]} 4... Be7 {[%clk 0:04:47.9]} 5. Bxf6 {[%clk
0:04:44.2]} 5... Bxf6 {[%clk 0:04:45.4]} 6. e4 {[%clk 0:04:43.5]} 6... fxe4
{[%clk 0:04:38.2]} 7. Nxe4 {[%clk 0:04:42.6]} 7... O-O {[%clk 0:04:36.7]} 8. Bd3
{[%clk 0:04:41.5]} 8... d6 {[%clk 0:04:32.6]} 9. Qe2 {[%clk 0:04:37.4]} 9... Nc6
{[%clk 0:04:25.2]} 10. c3 {[%clk 0:04:36.1]} 10... e5 {[%clk 0:04:15.7]} 11.
Nxf6+ {[%clk 0:04:33]} 11... Qxf6 {[%clk 0:04:06.1]} 12. dxe5 {[%clk 0:04:31.4]}
12... dxe5 {[%clk 0:04:00.6]} 13. Be4 {[%clk 0:04:28.4]} 13... Bd7 {[%clk
0:03:47.7]} 14. h3 {[%clk 0:04:27.3]} 14... Rad8 {[%clk 0:03:41.2]} 15. O-O
{[%clk 0:04:26.2]} 15... Bf5 {[%clk 0:03:30.2]} 16. Rfe1 {[%clk 0:04:22.8]}
16... Bxe4 {[%clk 0:03:27.1]} 17. Qxe4 {[%clk 0:04:21.9]} 17... Qf4 {[%clk
0:03:17.3]} 18. Qxf4 {[%clk 0:04:20.8]} 18... exf4 {[%clk 0:03:14.3]} 19. Rad1
{[%clk 0:04:18.3]} 19... Rxd1 {[%clk 0:03:11.4]} 20. Rxd1 {[%clk 0:04:16.9]}
20... h6 {[%clk 0:03:08.6]} 21. h4 {[%clk 0:04:13.4]} 21... Rd8 {[%clk
0:03:03.7]} 22. Re1 {[%clk 0:04:11.5]} 22... Kf7 {[%clk 0:02:58.6]} 23. Kh2
{[%clk 0:04:10.5]} 23... Kf6 {[%clk 0:02:52.1]} 24. Kh3 {[%clk 0:04:08.7]} 24...
Rd6 {[%clk 0:02:44.5]} 25. h5 {[%clk 0:04:07.7]} 25... Re6 {[%clk 0:02:38.2]}
26. Rxe6+ {[%clk 0:04:02.9]} 26... Kxe6 {[%clk 0:02:36.5]} 27. Kg4 {[%clk
0:04:02.4]} 27... Ne5+ {[%clk 0:02:24.1]} 28. Nxe5 {[%clk 0:03:58.8]} 28... Kxe5
{[%clk 0:02:22.1]} 29. f3 {[%clk 0:03:51.1]} 29... c5 {[%clk 0:02:19.4]} 30. a4
{[%clk 0:03:49.8]} 30... a6 {[%clk 0:02:17]} 31. a5 {[%clk 0:03:48.5]} 31... c4
{[%clk 0:02:11.7]} 32. Kh4 {[%clk 0:03:46]} 32... Kf5 {[%clk 0:02:07.6]} 33. g4+
{[%clk 0:03:29.5]} 33... fxg3 {[%clk 0:02:04.2]} 34. Kxg3 {[%clk 0:03:28.4]}
34... g6 {[%clk 0:02:01.7]} 35. hxg6 {[%clk 0:03:23.6]} 35... Kxg6 {[%clk
0:02:00]} 36. Kf4 {[%clk 0:03:23.1]} 36... Kf6 {[%clk 0:01:56.2]} 37. Kg4 {[%clk
0:03:21.9]} 37... Kg6 {[%clk 0:01:54.7]} 38. Kf4 {[%clk 0:03:19.2]} 38... Kf6
{[%clk 0:01:53.3]} 39. Kg4 {[%clk 0:03:17.3]} 39... Kg6 {[%clk 0:01:52]} 40. Kh4
{[%clk 0:02:47.9]} 40... Kf5 {[%clk 0:01:42.5]} 41. Kh5 {[%clk 0:02:47.1]} 41...
Kf4 {[%clk 0:01:41]} 42. Kxh6 {[%clk 0:02:46.6]} 42... Kxf3 {[%clk 0:01:39.8]}
43. Kg5 {[%clk 0:02:46.2]} 43... Ke3 {[%clk 0:01:38.6]} 44. Kf5 {[%clk
0:02:44.7]} 44... Kd3 {[%clk 0:01:37.5]} 45. Ke5 {[%clk 0:02:43.9]} 45... Kc2
{[%clk 0:01:36.5]} 46. Kd5 {[%clk 0:02:42.1]} 46... Kb3 {[%clk 0:01:32.9]} 47.
Kc5 {[%clk 0:02:39.4]} 47... Kxb2 {[%clk 0:01:23.9]} 48. Kxc4 {[%clk 0:02:38]}
48... Ka3 {[%clk 0:01:23.5]} 49. Kc5 {[%clk 0:02:36.7]} 49... Ka4 {[%clk
0:01:22]} 50. Kb6 {[%clk 0:02:36.1]} 50... Kb3 {[%clk 0:01:13.8]} 51. Kxb7
{[%clk 0:02:35.1]} 51... Ka4 {[%clk 0:01:12]} 52. Kxa6 {[%clk 0:02:34.4]} 52...
Kb3 {[%clk 0:01:08.7]} 53. Kb6 {[%clk 0:02:33.5]} 53... Kxc3 {[%clk 0:01:08.6]}
54. a6 {[%clk 0:02:33.1]} 54... Kc4 {[%clk 0:01:07.3]} 55. a7 {[%clk 0:02:32.6]}
55... Kb4 {[%clk 0:00:51.3]} 56. a8=Q {[%clk 0:02:22.9]} 56... Kc4 {[%clk
0:00:49.1]} 57. Qa3 {[%clk 0:02:20.3]} 57... Kd4 {[%clk 0:00:46.3]} 58. Qb3
{[%clk 0:02:19]} 1-0

[Event "Live Chess"]
[Site "Chess.com"]
[Date "2023.05.21"]
[Round "-"]
[White "domrobson"]
[Black "Ferrarifan27"]
[Result "0-1"]
[WhiteElo "1718"]
[BlackElo "2078"]
[TimeControl "300"]
[EndTime "4:36:50 PDT"]
[Termination "Ferrarifan27 won by resignation"]

1. d4 {[%clk 0:04:58.3]} 1... Nf6 {[%clk 0:04:58]} 2. c4 {[%clk 0:04:57.3]} 2...
e6 {[%clk 0:04:56.7]} 3. Nf3 {[%clk 0:04:56.3]} 3... b6 {[%clk 0:04:54.4]} 4. a3
{[%clk 0:04:54.5]} 4... Bb7 {[%clk 0:04:53.6]} 5. Nc3 {[%clk 0:04:53.1]} 5...
Be7 {[%clk 0:04:52.7]} 6. Bg5 {[%clk 0:04:51.2]} 6... O-O {[%clk 0:04:51.3]} 7.
e3 {[%clk 0:04:50.5]} 7... d6 {[%clk 0:04:50.2]} 8. Bd3 {[%clk 0:04:49.6]} 8...
Nbd7 {[%clk 0:04:49.2]} 9. O-O {[%clk 0:04:48]} 9... e5 {[%clk 0:04:48.2]} 10.
Qc2 {[%clk 0:04:35.3]} 10... h6 {[%clk 0:04:44.4]} 11. Bxf6 {[%clk 0:04:31.6]}
11... Bxf6 {[%clk 0:04:37.4]} 12. d5 {[%clk 0:04:26.4]} 12... Re8 {[%clk
0:04:31.6]} 13. e4 {[%clk 0:04:20.8]} 13... a5 {[%clk 0:04:22.8]} 14. b4 {[%clk
0:04:18.3]} 14... axb4 {[%clk 0:04:20.4]} 15. axb4 {[%clk 0:04:16.9]} 15... Qe7
{[%clk 0:04:20]} 16. Nb5 {[%clk 0:04:04]} 16... Nf8 {[%clk 0:04:15.2]} 17. c5
{[%clk 0:03:59.2]} 17... bxc5 {[%clk 0:04:10.2]} 18. bxc5 {[%clk 0:03:57.5]}
18... dxc5 {[%clk 0:04:09]} 19. Qc4 {[%clk 0:03:50.3]} 19... Ng6 {[%clk
0:04:01.6]} 20. Rfc1 {[%clk 0:03:46]} 20... Nf4 {[%clk 0:03:59.6]} 21. Bf1
{[%clk 0:03:44]} 21... Bg5 {[%clk 0:03:43.7]} 22. Rxa8 {[%clk 0:03:39.1]} 22...
Rxa8 {[%clk 0:03:41.9]} 23. Qxc5 {[%clk 0:03:38.3]} 23... Qxc5 {[%clk
0:03:29.5]} 24. Rxc5 {[%clk 0:03:36.6]} 24... Ra1 {[%clk 0:03:28]} 25. Nc3
{[%clk 0:03:15.3]} 25... Ba6 {[%clk 0:03:21.5]} 26. Nd2 {[%clk 0:03:05.9]} 26...
Ne2+ {[%clk 0:03:20.2]} 27. Nxe2 {[%clk 0:03:03.3]} 27... Bxe2 {[%clk
0:03:14.2]} 28. f4 {[%clk 0:02:59.3]} 28... Bxf4 {[%clk 0:03:09.4]} 29. Kf2
{[%clk 0:02:57.4]} 29... Bxf1 {[%clk 0:03:00]} 30. Nxf1 {[%clk 0:02:55]} 30...
Ra2+ {[%clk 0:02:51.1]} 31. Kg1 {[%clk 0:02:52.4]} 31... Re2 {[%clk 0:02:42.2]}
32. Rxc7 {[%clk 0:02:49]} 32... Rxe4 {[%clk 0:02:41.2]} 33. d6 {[%clk
0:02:46.4]} 33... Rd4 {[%clk 0:02:40.1]} 34. d7 {[%clk 0:02:45.3]} 34... Kh7
{[%clk 0:02:37.9]} 35. g3 {[%clk 0:02:43.7]} 35... Bg5 {[%clk 0:02:33]} 36. Kf2
{[%clk 0:02:40.4]} 36... e4 {[%clk 0:02:21.3]} 37. Ke2 {[%clk 0:02:33.1]} 37...
Kg6 {[%clk 0:02:08.4]} 38. h4 {[%clk 0:02:27.3]} 38... Bd8 {[%clk 0:01:50.3]}
39. Rb7 {[%clk 0:02:24.6]} 39... Kf5 {[%clk 0:01:48.5]} 40. Ne3+ {[%clk
0:02:22]} 40... Ke6 {[%clk 0:01:46]} 41. g4 {[%clk 0:02:01.5]} 41... Rxd7 {[%clk
0:01:42.8]} 42. Rxd7 {[%clk 0:02:00]} 42... Kxd7 {[%clk 0:01:42.7]} 43. Nf5
{[%clk 0:01:55.9]} 43... g6 {[%clk 0:01:30.7]} 44. Nxh6 {[%clk 0:01:53.4]} 44...
Bxh4 {[%clk 0:01:29.4]} 45. Nxf7 {[%clk 0:01:50.9]} 45... Ke6 {[%clk 0:01:28.1]}
46. Nh6 {[%clk 0:01:40.5]} 46... Bg5 {[%clk 0:01:23.2]} 47. Ng8 {[%clk
0:01:28.3]} 47... Kf7 {[%clk 0:01:20.6]} 0-1

[Event "Live Chess"]
[Site "Chess.com"]
[Date "2023.05.21"]
[Round "-"]
[White "WilliamofOrange16th"]
[Black "CeladonFish"]
[Result "1-0"]
[WhiteElo "1869"]
[BlackElo "1096"]
[TimeControl "300"]
[EndTime "4:36:55 PDT"]
[Termination "WilliamofOrange16th won by resignation"]

1. e4 {[%clk 0:04:58.7]} 1... d6 {[%clk 0:04:59.5]} 2. d4 {[%clk 0:04:56.8]}
2... Nf6 {[%clk 0:04:59]} 3. Nc3 {[%clk 0:04:55.9]} 3... g6 {[%clk 0:04:57.9]}
4. f4 {[%clk 0:04:54.9]} 4... Bg7 {[%clk 0:04:56.6]} 5. Nf3 {[%clk 0:04:54.5]}
5... O-O {[%clk 0:04:55.9]} 6. Bd3 {[%clk 0:04:52.9]} 6... Bg4 {[%clk
0:04:54.1]} 7. Be3 {[%clk 0:04:51.9]} 7... Bxf3 {[%clk 0:04:53.3]} 8. Qxf3
{[%clk 0:04:50.4]} 8... Nc6 {[%clk 0:04:50.3]} 9. g4 {[%clk 0:04:48.4]} 9... Nd7
{[%clk 0:04:47.2]} 10. Qf2 {[%clk 0:04:45.9]} 10... e5 {[%clk 0:04:38.5]} 11. d5
{[%clk 0:04:43.5]} 11... Nb4 {[%clk 0:04:36.1]} 12. f5 {[%clk 0:04:41.8]} 12...
Nxd3+ {[%clk 0:04:33.8]} 13. cxd3 {[%clk 0:04:41.7]} 13... Nc5 {[%clk
0:04:29.5]} 14. O-O-O {[%clk 0:04:39.6]} 14... a5 {[%clk 0:04:12]} 15. Bxc5
{[%clk 0:04:38.4]} 15... dxc5 {[%clk 0:04:10.7]} 16. Qxc5 {[%clk 0:04:38.3]}
16... Qd6 {[%clk 0:04:08.1]} 17. Qxd6 {[%clk 0:04:36.1]} 17... cxd6 {[%clk
0:04:07.1]} 18. Nb5 {[%clk 0:04:34.9]} 18... Rad8 {[%clk 0:04:03.6]} 19. h4
{[%clk 0:04:24.9]} 19... gxf5 {[%clk 0:04:01.8]} 20. gxf5 {[%clk 0:04:23.2]}
20... Bh6+ {[%clk 0:03:59.1]} 21. Kb1 {[%clk 0:04:22.1]} 21... Bg7 {[%clk
0:03:58.2]} 22. Rhg1 {[%clk 0:04:21]} 22... f6 {[%clk 0:03:53.6]} 23. h5 {[%clk
0:04:18.6]} 23... Kf7 {[%clk 0:03:51.1]} 24. Rc1 {[%clk 0:04:10.6]} 24... Rd7
{[%clk 0:03:36.6]} 25. Nc7 {[%clk 0:04:08.8]} 25... Rc8 {[%clk 0:03:33.5]} 26.
Ne6 {[%clk 0:04:08]} 26... Rxc1+ {[%clk 0:03:30.7]} 27. Rxc1 {[%clk 0:04:07.7]}
27... Bh6 {[%clk 0:03:25.2]} 28. Rc8 {[%clk 0:04:05.4]} 28... b5 {[%clk
0:03:21.7]} 29. Kc2 {[%clk 0:03:57.1]} 29... b4 {[%clk 0:03:20.6]} 30. Ra8
{[%clk 0:03:55.4]} 30... Bf4 {[%clk 0:03:10.8]} 31. Rxa5 {[%clk 0:03:52.8]}
31... Rb7 {[%clk 0:03:07.1]} 32. b3 {[%clk 0:03:48.2]} 32... h6 {[%clk
0:03:02.2]} 33. Ra6 {[%clk 0:03:47]} 33... Ke7 {[%clk 0:03:00.4]} 34. a3 {[%clk
0:03:44.6]} 34... bxa3 {[%clk 0:02:58.2]} 35. Rxa3 {[%clk 0:03:43]} 35... Kd7
{[%clk 0:02:56.7]} 36. Kc3 {[%clk 0:03:38.4]} 36... Ke7 {[%clk 0:02:53.5]} 37.
b4 {[%clk 0:03:31.9]} 37... Kd7 {[%clk 0:02:49.6]} 38. Kc4 {[%clk 0:03:28.4]}
38... Bd2 {[%clk 0:02:42.5]} 39. b5 {[%clk 0:03:26.4]} 39... Kc8 {[%clk
0:02:31.8]} 40. Ra8+ {[%clk 0:03:24.2]} 40... Kd7 {[%clk 0:02:30.8]} 41. Rh8
{[%clk 0:03:20.1]} 41... Ke7 {[%clk 0:02:27.7]} 42. Rh7+ {[%clk 0:03:18.6]}
42... Ke8 {[%clk 0:02:25.9]} 43. Rxb7 {[%clk 0:03:18.5]} 1-0

[Event "Live Chess"]
[Site "Chess.com"]
[Date "2023.05.21"]
[Round "-"]
[White "MarkLim1"]
[Black "GMHarry-youtube"]
[Result "0-1"]
[WhiteElo "1682"]
[BlackElo "2042"]
[TimeControl "300"]
[EndTime "4:36:57 PDT"]
[Termination "GMHarry-youtube won by resignation"]

1. d4 {[%clk 0:04:59.5]} 1... Nf6 {[%clk 0:04:57.1]} 2. Nf3 {[%clk 0:04:58.8]}
2... g6 {[%clk 0:04:54.9]} 3. c4 {[%clk 0:04:56.4]} 3... Bg7 {[%clk 0:04:53.4]}
4. Nc3 {[%clk 0:04:56]} 4... d6 {[%clk 0:04:52.2]} 5. e4 {[%clk 0:04:55.4]} 5...
O-O {[%clk 0:04:50.6]} 6. Be2 {[%clk 0:04:54.7]} 6... e5 {[%clk 0:04:47.1]} 7.
d5 {[%clk 0:04:53.9]} 7... c5 {[%clk 0:04:45.1]} 8. Nd2 {[%clk 0:04:52.5]} 8...
Nfd7 {[%clk 0:04:44]} 9. a3 {[%clk 0:04:51.2]} 9... f5 {[%clk 0:04:43.2]} 10.
O-O {[%clk 0:04:48.3]} 10... f4 {[%clk 0:04:43.1]} 11. Bg4 {[%clk 0:04:46.7]}
11... Nf6 {[%clk 0:04:38.4]} 12. Bxc8 {[%clk 0:04:45.4]} 12... Qxc8 {[%clk
0:04:38.3]} 13. b4 {[%clk 0:04:44]} 13... b6 {[%clk 0:04:36.1]} 14. Nb5 {[%clk
0:04:38.1]} 14... Rd8 {[%clk 0:04:32.2]} 15. f3 {[%clk 0:04:36.9]} 15... a6
{[%clk 0:04:30.7]} 16. Nc3 {[%clk 0:04:35.3]} 16... g5 {[%clk 0:04:29]} 17. Qb3
{[%clk 0:04:29.3]} 17... h5 {[%clk 0:04:26.3]} 18. a4 {[%clk 0:04:27.3]} 18...
a5 {[%clk 0:04:22.3]} 19. bxa5 {[%clk 0:04:23.7]} 19... bxa5 {[%clk 0:04:20.9]}
20. Nb5 {[%clk 0:04:17.2]} 20... Na6 {[%clk 0:04:17.9]} 21. Rd1 {[%clk
0:04:13.1]} 21... Nb4 {[%clk 0:04:15.8]} 22. Nf1 {[%clk 0:04:10.3]} 22... g4
{[%clk 0:04:13.7]} 23. Bd2 {[%clk 0:04:06.9]} 23... h4 {[%clk 0:04:04.3]} 24.
Bxb4 {[%clk 0:04:02.8]} 24... axb4 {[%clk 0:04:02.6]} 25. a5 {[%clk 0:04:01.8]}
25... Ra6 {[%clk 0:03:55]} 26. Re1 {[%clk 0:03:48.2]} 26... h3 {[%clk
0:03:43.7]} 27. fxg4 {[%clk 0:03:43.1]} 27... Qxg4 {[%clk 0:03:41.5]} 28. Qf3
{[%clk 0:03:37.5]} 28... Qxf3 {[%clk 0:03:38.1]} 29. gxf3 {[%clk 0:03:36.5]}
29... Ne8 {[%clk 0:03:32.3]} 30. Kf2 {[%clk 0:03:33.2]} 30... Rda8 {[%clk
0:03:30.6]} 31. Nd2 {[%clk 0:03:27.8]} 31... Rxa5 {[%clk 0:03:29.8]} 32. Rxa5
{[%clk 0:03:26.2]} 32... Rxa5 {[%clk 0:03:29.7]} 33. Rg1 {[%clk 0:03:21.9]}
33... Ra2 {[%clk 0:03:25.8]} 34. Ke2 {[%clk 0:03:17.4]} 34... b3 {[%clk
0:03:24.7]} 35. Nc3 {[%clk 0:03:16]} 35... Rc2 {[%clk 0:03:22.1]} 36. Kd3 {[%clk
0:03:13.4]} 36... Nc7 {[%clk 0:03:11.7]} 37. Nxb3 {[%clk 0:03:10.2]} 37... Rg2
{[%clk 0:03:09.3]} 38. Ne2 {[%clk 0:03:04.1]} 38... Rxh2 {[%clk 0:03:07]} 39.
Na5 {[%clk 0:02:50.3]} 39... Rg2 {[%clk 0:02:53.9]} 40. Rxg2 {[%clk 0:02:29.6]}
40... hxg2 {[%clk 0:02:53.8]} 41. Kd2 {[%clk 0:02:26]} 41... Bf6 {[%clk
0:02:50.6]} 42. Ng1 {[%clk 0:02:20.7]} 42... Bh4 {[%clk 0:02:44.7]} 43. Ke2
{[%clk 0:02:18.8]} 43... Kg7 {[%clk 0:02:39.2]} 44. Nb7 {[%clk 0:02:14.5]} 44...
Ne8 {[%clk 0:02:38]} 45. Nd8 {[%clk 0:02:12.7]} 45... Bxd8 {[%clk 0:02:36]} 0-1

[Event "Live Chess"]
[Site "Chess.com"]
[Date "2023.05.21"]
[Round "-"]
[White "hturner40"]
[Black "bedsdrout"]
[Result "1-0"]
[WhiteElo "1779"]
[BlackElo "569"]
[TimeControl "300"]
[EndTime "4:37:10 PDT"]
[Termination "hturner40 won by resignation"]

1. g3 {[%clk 0:04:56.9]} 1... e6 {[%clk 0:04:51.4]} 2. Bg2 {[%clk 0:04:55.4]}
2... Qe7 {[%clk 0:04:39.5]} 3. Nf3 {[%clk 0:04:53.2]} 3... Qb4 {[%clk
0:04:10.7]} 4. O-O {[%clk 0:04:46.8]} 4... Qc5 {[%clk 0:04:04.9]} 5. d4 {[%clk
0:04:44.8]} 5... Qh5 {[%clk 0:04:02.7]} 6. e4 {[%clk 0:04:35.6]} 6... Nf6 {[%clk
0:04:01.1]} 7. Nc3 {[%clk 0:04:32.7]} 7... Ng4 {[%clk 0:03:48.6]} 8. h3 {[%clk
0:04:21.9]} 8... Nf6 {[%clk 0:03:40.6]} 9. g4 {[%clk 0:04:06.6]} 9... Qh6 {[%clk
0:03:35.9]} 10. Bxh6 {[%clk 0:03:57]} 10... gxh6 {[%clk 0:03:31.7]} 11. e5
{[%clk 0:03:53.2]} 11... Bg7 {[%clk 0:03:22.7]} 12. exf6 {[%clk 0:03:51]} 12...
Bxf6 {[%clk 0:03:18]} 13. Ne4 {[%clk 0:03:50.5]} 1-0

[Event "Live Chess"]
[Site "Chess.com"]
[Date "2023.05.21"]
[Round "-"]
[White "Sha_25"]
[Black "Pandreq"]
[Result "0-1"]
[WhiteElo "1138"]
[BlackElo "1236"]
[TimeControl "300"]
[EndTime "4:37:14 PDT"]
[Termination "Pandreq won by checkmate"]

1. d4 {[%clk 0:04:54.8]} 1... d5 {[%clk 0:04:58.4]} 2. c4 {[%clk 0:04:48.3]}
2... c6 {[%clk 0:04:56.4]} 3. Nc3 {[%clk 0:04:47.3]} 3... Nf6 {[%clk 0:04:54.8]}
4. Bg5 {[%clk 0:04:44.9]} 4... e6 {[%clk 0:04:53.3]} 5. e3 {[%clk 0:04:43.8]}
5... Be7 {[%clk 0:04:52.4]} 6. Nf3 {[%clk 0:04:43.1]} 6... h6 {[%clk 0:04:51.4]}
7. Bh4 {[%clk 0:04:41.4]} 7... Nbd7 {[%clk 0:04:44.6]} 8. Rc1 {[%clk 0:04:35.3]}
8... c5 {[%clk 0:04:42.3]} 9. cxd5 {[%clk 0:04:31.5]} 9... Nxd5 {[%clk
0:04:37.7]} 10. Bxe7 {[%clk 0:04:28.7]} 10... Nxe7 {[%clk 0:04:31.6]} 11. dxc5
{[%clk 0:04:23.5]} 11... Nxc5 {[%clk 0:04:24.5]} 12. Qxd8+ {[%clk 0:04:21.9]}
12... Kxd8 {[%clk 0:04:23.1]} 13. Bb5 {[%clk 0:04:17.2]} 13... Bd7 {[%clk
0:04:14.6]} 14. Bxd7 {[%clk 0:04:14.6]} 14... Nxd7 {[%clk 0:04:12.6]} 15. O-O
{[%clk 0:04:11.3]} 15... Rc8 {[%clk 0:04:05.2]} 16. Rfd1 {[%clk 0:04:10.9]}
16... Rc7 {[%clk 0:04:03.9]} 17. Ne5 {[%clk 0:04:08]} 17... Ke8 {[%clk 0:03:57]}
18. Nb5 {[%clk 0:04:02.9]} 18... Rxc1 {[%clk 0:03:52.9]} 19. Rxc1 {[%clk
0:04:02]} 19... Nxe5 {[%clk 0:03:51.6]} 20. Nd6+ {[%clk 0:03:55.3]} 20... Kd7
{[%clk 0:03:46.3]} 21. Nxb7 {[%clk 0:03:49.5]} 21... Rb8 {[%clk 0:03:39.9]} 22.
Nc5+ {[%clk 0:03:44.4]} 22... Ke8 {[%clk 0:03:36.2]} 23. Nb3 {[%clk 0:03:42.3]}
23... Nd3 {[%clk 0:03:30.8]} 24. Rc3 {[%clk 0:03:34.2]} 24... Nxb2 {[%clk
0:03:26.7]} 25. Kf1 {[%clk 0:03:22.5]} 25... Nd5 {[%clk 0:03:23.4]} 26. Rc2
{[%clk 0:03:16]} 26... Na4 {[%clk 0:03:16.7]} 27. Ke2 {[%clk 0:03:13]} 27...
Nac3+ {[%clk 0:03:11.2]} 28. Kd3 {[%clk 0:03:09.5]} 28... Nxa2 {[%clk
0:03:10.3]} 29. Rxa2 {[%clk 0:03:05]} 29... Rxb3+ {[%clk 0:03:09.3]} 30. Kc2
{[%clk 0:03:04.4]} 30... Rb7 {[%clk 0:03:07.2]} 31. Ra3 {[%clk 0:03:00]} 31...
Rc7+ {[%clk 0:03:01.8]} 32. Kd3 {[%clk 0:02:55.2]} 32... Nb4+ {[%clk 0:02:59.5]}
33. Ke4 {[%clk 0:02:48.2]} 33... Nc2 {[%clk 0:02:54.8]} 34. Kf3 {[%clk
0:02:45.3]} 34... Kd7 {[%clk 0:02:49.9]} 35. Rd3+ {[%clk 0:02:42.9]} 35... Kc6
{[%clk 0:02:45.5]} 36. Rc3+ {[%clk 0:02:41.6]} 36... Kb6 {[%clk 0:02:43.6]} 37.
Rb3+ {[%clk 0:02:41.2]} 37... Ka5 {[%clk 0:02:38.2]} 38. Rb2 {[%clk 0:02:39.3]}
38... Ka4 {[%clk 0:02:34.7]} 39. Rb1 {[%clk 0:02:33.1]} 39... a5 {[%clk
0:02:31.6]} 40. Rc1 {[%clk 0:02:31.8]} 40... Nd4+ {[%clk 0:02:27.5]} 41. exd4
{[%clk 0:02:30.4]} 41... Rxc1 {[%clk 0:02:26.5]} 42. Ke4 {[%clk 0:02:30.3]}
42... Rc4 {[%clk 0:02:23]} 43. Ke5 {[%clk 0:02:30.2]} 43... Kb5 {[%clk
0:02:20.8]} 44. Kd6 {[%clk 0:02:30.1]} 44... Rxd4+ {[%clk 0:02:19]} 45. Ke7
{[%clk 0:02:30]} 45... Rf4 {[%clk 0:02:17.6]} 46. Kf8 {[%clk 0:02:28.1]} 46...
Rxf2 {[%clk 0:02:14.8]} 47. Kxg7 {[%clk 0:02:27.3]} 47... Rxg2+ {[%clk
0:02:13.7]} 48. Kxf7 {[%clk 0:02:27.2]} 48... Rxh2 {[%clk 0:02:12.8]} 49. Kxe6
{[%clk 0:02:27.1]} 49... Rg2 {[%clk 0:02:11.1]} 50. Kf5 {[%clk 0:02:27]} 50...
h5 {[%clk 0:02:09.9]} 51. Kf4 {[%clk 0:02:26.9]} 51... h4 {[%clk 0:02:09.3]} 52.
Kf3 {[%clk 0:02:26.8]} 52... h3 {[%clk 0:02:08.6]} 53. Kf4 {[%clk 0:02:24.6]}
53... h2 {[%clk 0:02:07.7]} 54. Kf3 {[%clk 0:02:24.5]} 54... h1=Q {[%clk
0:02:06.4]} 55. Kf4 {[%clk 0:02:23.8]} 55... Qh5 {[%clk 0:02:04.8]} 56. Ke4
{[%clk 0:02:23.7]} 56... Rg4+ {[%clk 0:02:03.7]} 57. Ke3 {[%clk 0:02:22.8]}
57... Qh3+ {[%clk 0:02:03.6]} 58. Kf2 {[%clk 0:02:21.9]} 58... Rg2+ {[%clk
0:02:03.5]} 59. Ke1 {[%clk 0:02:20]} 59... Qh1# {[%clk 0:02:03.4]} 0-1

[Event "Live Chess"]
[Site "Chess.com"]
[Date "2023.05.21"]
[Round "-"]
[White "WelshTiger"]
[Black "yeetpizza74"]
[Result "1-0"]
[WhiteElo "2313"]
[BlackElo "501"]
[TimeControl "300"]
[EndTime "4:37:22 PDT"]
[Termination "WelshTiger won by checkmate"]

1. e4 {[%clk 0:04:58.6]} 1... c6 {[%clk 0:04:57.9]} 2. d4 {[%clk 0:04:57.5]}
2... d5 {[%clk 0:04:56.2]} 3. f3 {[%clk 0:04:57.1]} 3... Nf6 {[%clk 0:04:53.9]}
4. e5 {[%clk 0:04:56.1]} 4... Nfd7 {[%clk 0:04:47]} 5. c4 {[%clk 0:04:55.2]}
5... dxc4 {[%clk 0:04:45.4]} 6. Bxc4 {[%clk 0:04:54.4]} 6... e6 {[%clk
0:04:44.3]} 7. Ne2 {[%clk 0:04:52.7]} 7... Bb4+ {[%clk 0:04:43.1]} 8. Nbc3
{[%clk 0:04:51.5]} 8... Bxc3+ {[%clk 0:04:42.2]} 9. bxc3 {[%clk 0:04:50.6]} 9...
O-O {[%clk 0:04:41.2]} 10. O-O {[%clk 0:04:49.6]} 10... f6 {[%clk 0:04:38.4]}
11. Bxe6+ {[%clk 0:04:47.5]} 11... Kh8 {[%clk 0:04:26.8]} 12. f4 {[%clk
0:04:46.8]} 12... fxe5 {[%clk 0:04:23.5]} 13. fxe5 {[%clk 0:04:45.8]} 13...
Rxf1+ {[%clk 0:04:21]} 14. Qxf1 {[%clk 0:04:44.4]} 14... Qe7 {[%clk 0:04:12.7]}
15. Bb3 {[%clk 0:04:40.3]} 15... c5 {[%clk 0:04:06.6]} 16. Be3 {[%clk
0:04:31.2]} 16... cxd4 {[%clk 0:04:04.4]} 17. cxd4 {[%clk 0:04:31.1]} 17... Nc6
{[%clk 0:03:58.4]} 18. Qf3 {[%clk 0:04:26.6]} 18... b6 {[%clk 0:03:54.3]} 19.
Qxc6 {[%clk 0:04:24]} 19... Ba6 {[%clk 0:03:45.7]} 20. Qxa8+ {[%clk 0:04:16.4]}
20... Qf8 {[%clk 0:03:41]} 21. Qxf8+ {[%clk 0:04:14.5]} 21... Nxf8 {[%clk
0:03:39.5]} 22. Nc3 {[%clk 0:04:12.7]} 22... b5 {[%clk 0:03:34.5]} 23. a4 {[%clk
0:04:09.2]} 23... b4 {[%clk 0:03:31.4]} 24. Nd5 {[%clk 0:04:08.6]} 24... Ne6
{[%clk 0:03:25.1]} 25. Nxb4 {[%clk 0:04:07.5]} 25... Bd3 {[%clk 0:03:20.8]} 26.
Bxe6 {[%clk 0:04:06.1]} 26... a6 {[%clk 0:03:16.9]} 27. Nxd3 {[%clk 0:04:04.5]}
27... a5 {[%clk 0:03:16]} 28. d5 {[%clk 0:04:03.3]} 28... g6 {[%clk 0:03:12.7]}
29. d6 {[%clk 0:04:02.8]} 29... g5 {[%clk 0:03:11.7]} 30. d7 {[%clk 0:04:02.4]}
30... g4 {[%clk 0:03:09.7]} 31. d8=Q+ {[%clk 0:04:01.2]} 31... Kg7 {[%clk
0:03:08]} 32. Qf6# {[%clk 0:04:01.1]} 1-0